fUSD/lending_fUSD_20240501
["ID","MTS","AMOUNT","RATE_DAILY","PERIOD"]
[325185002,1714555832191,-803.066,0.00012869,2]
[325185004,1714555832201,-646.65380854,0.00012869,2]
[325185005,1714555832214,-156.41219146,0.00012869,2]
[325185006,1714555832225,-457.09980254,0.00012889,2]
[325185007,1714555832257,-47.38019746,0.00012889,2]
[325185008,1714555832267,-1000.0,0.00012895,2]
[325185009,1714555832276,-500.0,0.00012895,2]
[325185010,1714555832286,-1000.0,0.00012896,2]
[325185011,1714555832296,-1000.0,0.00012896,2]
[325185012,1714555832308,-500.0,0.00012896,2]
[325185013,1714555832318,-500.0,0.00012896,2]
[325185014,1714555832327,-3187.99,0.00012899,2]
[325185015,1714555832337,-246.7715,0.00012899,2]
[325185016,1714555832347,-617.8557572,0.00012899,2]
[325185017,1714555832360,-633.16573653,0.00012899,2]
[325185018,1714555832372,-6248.97850627,0.00012899,2]
[325185019,1714555832382,-156.77121027,0.00012899,2]
[325185020,1714555832393,-930.48,0.000129,2]
[325185021,1714555832402,-414.22,0.000129,2]
[325185022,1714555832411,-820.27456783,0.000129,2]
[325185023,1714555832421,-241.74049082,0.000129,2]
[325185024,1714555832431,-853.51,0.00012929,2]
[325185025,1714555832440,-155.1400394,0.00012997,2]
[325185026,1714555832450,-1232.25620839,0.00012998,2]
[325185027,1714555832460,-3354.83945117,0.00012999,2]
[325185028,1714555832510,-542.31677201,0.00012999,2]
[325185029,1714555832522,-4069.02801231,0.00012999,2]
[325185030,1714555832533,-441.23700119,0.00012999,2]
[325185031,1714555832544,-648.56859254,0.00012999,2]
[325185032,1714555832556,-2493.21,0.00012999,2]
[325185042,1714555837756,-19840.1776307,0.00012999,2]
[325185043,1714555837767,-6403.74677051,0.00012999,2]
[325185044,1714555837779,-1029.27,0.00012999,2]
[325185045,1714555837790,-741.3170906,0.00012999,2]
[325185046,1714555837801,-1000.00663,0.00012999,2]
[325185047,1714555837813,-995.94,0.00012999,2]
[325185048,1714555837824,-3501.10558491,0.00012999,2]
[325185049,1714555838139,-5742.8,0.00012999,2]
[325185050,1714555838151,-7777.74976624,0.00012999,2]
[325185159,1714555839890,-1730.84596,0.00012999,2]
[325185160,1714555839903,-1344.33106011,0.00012999,2]
[325185161,1714555839914,-1508.7644094,0.00012999,2]
[325185162,1714555840086,-56247.85279996,0.00012999,2]
[325185163,1714555840098,-330.13781764,0.00012999,2]
[325185164,1714555840110,-424.5191321,0.00012999,2]
[325185165,1714555840123,-1761.45133784,0.00012999,2]
[325185166,1714555840138,-778.93087633,0.00012999,2]
[325185167,1714555840150,-289.31,0.00012999,2]
[325185186,1714555842755,-311.65832234,0.00012899,2]
[325185188,1714555842765,-1361.66552114,0.00012999,2]
[325185197,1714555842890,-373.17195017,0.00012999,2]
[325185199,1714555842902,-777.12967707,0.00012999,2]
[325185201,1714555842914,-670.14303817,0.00012999,2]
[325185204,1714555842927,-277762.19797541,0.00012999,2]
[325185206,1714555842936,-150.01,0.00012999,2]
[325185208,1714555842946,-5852.08008115,0.00012999,2]
[325185210,1714555842955,-546.96745632,0.00012999,2]
[325185212,1714555842964,-408.68643751,0.00012999,2]
[325185214,1714555842975,-177088.83700592,0.00012999,2]
[325185216,1714555842984,-3000.0,0.00012999,2]
[325185218,1714555842994,-1683.0,0.00013,2]
[325185220,1714555843003,-218623.36814842,0.00013,2]
[325185222,1714555843015,-2870.3,0.00013,2]
[325185225,1714555843038,-925.13043544,0.00013,2]
[325185245,1714555844300,-9451.688092,0.00013,2]
[325185246,1714555844312,-383.46677797,0.00013,2]
[325185247,1714555844323,-287449.49978867,0.00013,2]
[325185248,1714555844335,-1583.87922487,0.00013,2]
[325185249,1714555844349,-405.75828576,0.00013,2]
[325185250,1714555844400,-4597.22,0.00013,2]
[325185251,1714555844411,-469.67010088,0.00013,2]
[325185252,1714555844425,-643.92736939,0.00013,2]
[325185259,1714555845684,-311.65832232,0.00012899,2]
[325185260,1714555845693,-150.01,0.00012999,2]
[325185261,1714555845703,-113.71743368,0.00013,2]
[325185262,1714555846037,-85325.36946943,0.00013,2]
[325185263,1714555846049,-567.19006554,0.00013,2]
[325185274,1714555846153,-1466.35479328,0.00012999,2]
[325185276,1714555846163,-7983.5361648,0.00013,2]
[325185278,1714555846178,-324.23779872,0.00013,2]
[325185281,1714555846189,-5757.8,0.00013,2]
[325185284,1714555846200,-130298.54618544,0.00013,2]
[325185287,1714555846212,-558.18367625,0.00013,2]
[325185288,1714555846326,-255.0,0.00013,2]
[325185289,1714555846337,-378.29434134,0.00013,2]
[325185291,1714555846348,-655.84650455,0.00013,2]
[325185293,1714555846360,-3453.70473453,0.00013,2]
[325185827,1714556682185,-210.39354088,0.00010297,2]
[325185828,1714556683687,-196.88241884,0.00010297,2]
[325185830,1714556916939,-407.27595972,0.00010288,2]
[325185831,1714556916967,-155.0,0.00010289,2]
[325185832,1714556916997,-250.93300738,0.00010297,2]
[325185833,1714556980233,-188.0,0.0002532,30]
[325185834,1714556980257,-188.0,0.0002532,30]
[325185835,1714556980283,-300.0,0.0002532,60]
[325185836,1714556980306,-7692.97030494,0.0002532,30]
[325185837,1714556980330,-188.0,0.0002532,30]
[325185838,1714556980355,-5000.0,0.0002532,30]
[325185839,1714556980379,-10000.0,0.0002532,120]
[325185840,1714556980403,-186.50513709,0.0002532,60]
[325185841,1714556980425,-1064.40394029,0.0002532,30]
[325185842,1714556980449,-630.47241044,0.0002532,30]
[325185843,1714556980473,-251.73303984,0.0002532,120]
[325185844,1714556980499,-178.61227522,0.0002532,30]
[325185845,1714556980521,-967.0,0.0002532,30]
[325185846,1714556980544,-4416.0,0.0002532,120]
[325185847,1714556980567,-4839.0,0.0002532,30]
[325185848,1714556980597,-4955.6250261,0.0002532,30]
[325185849,1714556980621,-3452.8031871,0.0002532,30]
[325185850,1714556980642,-2398.07240192,0.0002532,120]
[325185851,1714556980665,-3050.90788721,0.0002532,120]
[325185852,1714556980686,-4582.607878,0.0002532,30]
[325185853,1714556980709,-4978.32885285,0.0002532,30]
[325185854,1714556980730,-4456.35951205,0.0002532,120]
[325185855,1714556980753,-4497.28129813,0.0002532,120]
[325185856,1714556980776,-171.18134802,0.0002532,30]
[325185857,1714556980799,-180.29089719,0.0002532,30]
[325185858,1714556980821,-877.10029434,0.0002532,30]
[325185859,1714556980845,-378.33989169,0.0002532,120]
[325185860,1714556980868,-22626.84191715,0.0002532,30]
[325185861,1714556980890,-1000.0,0.0002532,120]
[325185862,1714556980912,-414074.1228472,0.0002532,90]
[325185863,1714556980933,-684.0,0.0002532,30]
[325185864,1714556980957,-273.0,0.0002532,30]
[325185865,1714556980980,-74488.42352987,0.0002532,60]
[325185866,1714556981002,-13610.09,0.0002532,30]
[325185867,1714556981025,-953.985317,0.0002532,30]
[325185868,1714556991056,-47.97011462,0.00010297,2]
[325185869,1714556991077,-179.79467674,0.00010297,2]
[325185870,1714556991753,-1000.0,0.000219,30]
[325185871,1714556991782,-1000.0,0.000246,30]
[325185872,1714556991807,-574.86781022,0.00024658,30]
[325185873,1714556991832,-574.86781022,0.00024767,30]
[325185874,1714556991858,-574.86781022,0.00024877,30]
[325185875,1714556991882,-574.86781022,0.00024959,30]
[325185876,1714556991910,-574.86781022,0.00025068,30]
[325185877,1714556992417,-12339.26593634,0.0002511,30]
[325185878,1714556992444,-574.86781022,0.00025178,30]
[325185879,1714556992470,-574.86781022,0.00025288,30]
[325185880,1714556992500,-574.86781022,0.00025397,30]
[325185881,1714556992527,-574.86781022,0.00025479,30]
[325185882,1714556992550,-574.86781022,0.00025589,30]
[325185883,1714556992574,-574.86781022,0.00025699,30]
[325185884,1714556992598,-574.86781022,0.00025808,30]
[325185885,1714556992623,-574.86781022,0.00025918,30]
[325185886,1714556992646,-4799.99999722,0.00025975,90]
[325185887,1714556992670,-347.9690289,0.00026,120]
[325185888,1714556992695,-13601.14274644,0.00026,120]
[325185889,1714556992718,-574.86781022,0.00026,30]
[325185890,1714556992742,-574.86781022,0.0002611,30]
[325185891,1714556992766,-186.09251947,0.00027,120]
[325185892,1714556992791,-1128.0,0.00028,30]
[325185893,1714556992815,-1200.0,0.00029,30]
[325185894,1714556992839,-155.0,0.00029175,60]
[325185895,1714556992864,-1208.0,0.0002955,30]
[325185896,1714556992888,-1385.52959951,0.0003,60]
[325185897,1714556992916,-1200.0,0.0003,31]
[325185898,1714556992940,-1200.0,0.00031,32]
[325185899,1714556992963,-1050.7539031,0.00032,50]
[325185900,1714556992989,-1200.0,0.00033,34]
[325185901,1714556993013,-336.0,0.00033861,120]
[325185902,1714556993038,-1650.0,0.00034,60]
[325185903,1714556993066,-4130.97,0.00034,30]
[325185904,1714556993090,-336.0,0.00034525,120]
[325185905,1714556993115,-4814.11687375,0.000349,30]
[325185906,1714556993139,-2386.81465282,0.00035,30]
[325185907,1714556993162,-1000.0,0.00035,120]
[325185908,1714556993186,-1400.0,0.00035,60]
[325185909,1714556993209,-10058.15517088,0.00035,30]
[325185910,1714556993232,-2128.75103986,0.00035,30]
[325185911,1714556993434,-336.0,0.00035189,120]
[325185912,1714556993465,-2115.65374169,0.000356,30]
[325185913,1714556993491,-336.0,0.00035853,120]
[325185914,1714556993517,-566.21,0.0003589,120]
[325185915,1714556993540,-4137.35,0.0003589,120]
[325185916,1714556993563,-1550.0,0.00036,100]
[325185917,1714556993590,-336.0,0.00036517,120]
[325185918,1714556993614,-883.96786559,0.00036955,120]
[325185919,1714556993637,-122005.71456564,0.00037,30]
[325185920,1714556993661,-5316.0,0.00037,60]
[325185921,1714556993685,-336.0,0.00037181,120]
[325185922,1714556993708,-994.12735941,0.00037777,120]
[325185923,1714556993736,-336.0,0.00037845,120]
[325185924,1714556993760,-268.1,0.00037961,30]
[325185925,1714556993783,-1450.0,0.00038,110]
[325185926,1714556993805,-2000.0,0.00038,120]
[325185927,1714556993828,-153718.21598613,0.00038,30]
[325185928,1714556993853,-10000.0,0.00038,30]
[325185929,1714556993878,-268.1,0.00038259,30]
[325185930,1714556993900,-500.0,0.00038356,30]
[325185931,1714556993924,-500.0,0.00038356,30]
[325185932,1714556993948,-500.0,0.00038356,30]
[325185933,1714556993971,-500.0,0.00038356,30]
[325185934,1714556993995,-500.0,0.00038356,30]
[325185935,1714556994018,-500.0,0.00038356,30]
[325185936,1714556994044,-500.0,0.00038356,30]
[325185937,1714556994066,-511.49857074,0.00038356,30]
[325185938,1714556994089,-500.0,0.00038356,30]
[325185939,1714556994114,-2500.0,0.000385,120]
[325185940,1714556994138,-336.0,0.00038509,120]
[325185941,1714556994163,-1259.64951389,0.000389,30]
[325185942,1714556994186,-3414.03449201,0.000389,120]
[325185943,1714556994208,-492.67084421,0.000389,120]
[325185944,1714556994231,-367.12741065,0.000389,30]
[325185945,1714556994253,-1001.9,0.000389,60]
[325185946,1714556994276,-1000.0,0.00039,120]
[325185947,1714556994299,-868.36282965,0.00039,120]
[325185948,1714556994325,-762.6323558,0.00039,30]
[325185949,1714556994347,-65057.64494361,0.00039,30]
[325185950,1714556994372,-268.1,0.00039138,60]
[325185951,1714556994395,-9474.0,0.0003915,120]
[325185952,1714556994417,-336.0,0.00039173,120]
[325185953,1714556994444,-5527.43940599,0.00039452,30]
[325185954,1714556994468,-912.45423023,0.000397,60]
[325185955,1714556994496,-2634.0,0.00039798,39]
[325185956,1714556994519,-341.98673411,0.00039837,120]
[325185957,1714556994543,-367.03492481,0.00039999,30]
[325185958,1714556994568,-100000.0,0.0004,40]
[325185959,1714556994597,-260.7063734,0.0004,120]
[325185960,1714556994620,-215.07045513,0.0004,30]
[325185961,1714556994643,-1111.80473397,0.0004,30]
[325185962,1714556994667,-200.0,0.0004,120]
[325185963,1714556994690,-1350.0,0.0004,120]
[325185964,1714556994713,-2000.0,0.0004,30]
[325185965,1714556994737,-1193.0,0.0004,30]
[325185966,1714556994766,-606.0,0.0004,60]
[325185967,1714556994791,-1000.0,0.0004,120]
[325185968,1714556994813,-631.22705402,0.0004,30]
[325185969,1714556994837,-402.86331274,0.0004,30]
[325185970,1714556994860,-1022.44358357,0.0004,30]
[325185971,1714556994883,-438.83748306,0.0004,30]
[325185972,1714556994907,-867.95671305,0.0004,30]
[325185973,1714556994931,-1179.89202812,0.0004,120]
[325185974,1714556994955,-241.01882391,0.0004,30]
[325185975,1714556994976,-4000.0,0.0004,30]
[325185976,1714556994999,-2000.0,0.0004,30]
[325185977,1714556995024,-2000.0,0.0004,120]
[325185978,1714556995047,-1800.0,0.0004,60]
[325185979,1714556995070,-366.98982024,0.0004,120]
[325185980,1714556995092,-4538.67583484,0.0004,50]
[325185981,1714556995116,-584321.9593882,0.0004,35]
[325185982,1714557002031,-415678.0406118,0.0004,35]
[325185983,1714557002055,-416.38483023,0.0004,30]
[325185984,1714557002078,-300252.90688477,0.0004,30]
[325185985,1714557002101,-10000.0,0.0004,90]
[325185986,1714557002126,-10000.0,0.0004,60]
[325185987,1714557002150,-10000.0,0.0004,120]
[325185988,1714557002173,-1623.07,0.0004,120]
[325185989,1714557002196,-5000.0,0.0004,120]
[325185990,1714557002219,-5000.0,0.0004,120]
[325185991,1714557002244,-5000.0,0.0004,120]
[325185992,1714557002268,-8000.0,0.0004,120]
[325185993,1714557002292,-8000.0,0.0004005,120]
[325185994,1714557002315,-5000.0,0.00040063,120]
[325185995,1714557002339,-5000.0,0.00040063,120]
[325185996,1714557002364,-5558.5,0.000401,120]
[325185997,1714557002388,-5000.0,0.00040125,120]
[325185998,1714557002411,-5000.0,0.00040188,120]
[325185999,1714557002435,-5000.0,0.00040188,120]
[325186000,1714557002460,-5000.0,0.0004025,120]
[325186001,1714557002488,-5000.0,0.0004025,120]
[325186002,1714557002515,-5000.0,0.00040313,120]
[325186003,1714557002538,-5000.0,0.00040313,120]
[325186004,1714557002562,-5848.7,0.00040327,79]
[325186005,1714557002586,-2686188.1062998,0.0004034,30]
[325186006,1714557002610,-5000.0,0.00040375,120]
[325186007,1714557002633,-5000.0,0.00040375,120]
[325186008,1714557002657,-2633.0,0.00040398,42]
[325186009,1714557002682,-5000.0,0.00040438,120]
[325186010,1714557002706,-5000.0,0.00040438,120]
[325186011,1714557002731,-5000.0,0.000405,120]
[325186012,1714557002754,-5000.0,0.000405,120]
[325186013,1714557002777,-5000.0,0.00040563,120]
[325186014,1714557002800,-5000.0,0.00040563,120]
[325186015,1714557002825,-5000.0,0.00040625,120]
[325186016,1714557002848,-5000.0,0.00040625,120]
[325186017,1714557002875,-5000.0,0.00040688,120]
[325186018,1714557002899,-1168.32827985,0.000407,33]
[325186019,1714557002922,-1001.92773577,0.000407,120]
[325186020,1714557002945,-5000.0,0.0004075,120]
[325186021,1714557002968,-5000.0,0.00040813,120]
[325186022,1714557002991,-5000.0,0.00040875,120]
[325186023,1714557003023,-268.1,0.00040898,60]
[325186024,1714557003051,-5471.17073284,0.000409,120]
[325186025,1714557003075,-1961.38659098,0.000409,60]
[325186026,1714557003101,-100000.0,0.00041,41]
[325186027,1714557003127,-1250.0,0.00041,120]
[325186028,1714557003151,-10000.0,0.00041,120]
[325186029,1714557003175,-2000.0,0.00041,30]
[325186030,1714557003199,-1087.13557649,0.00041,30]
[325186031,1714557003222,-673.99930409,0.00041,120]
[325186032,1714557003246,-70000.00000006,0.00041,30]
[325186033,1714557003269,-2000.0,0.00041,30]
[325186034,1714557003293,-2940.19751751,0.00041,30]
[325186035,1714557003323,-7118.27593882,0.00041,60]
[325186036,1714557003347,-4999.99,0.00041,120]
[325186037,1714557003373,-268.1,0.00041029,120]
[325186038,1714557003398,-510.0,0.00041095,120]
[325186039,1714557003645,-1800.0,0.00041095,30]
[325186040,1714557003670,-4600.0,0.00041095,30]
[325186041,1714557003694,-1000.0,0.00041096,120]
[325186042,1714557003719,-198.07468366,0.000411,60]
[325186043,1714557003744,-170.81985118,0.00041134,30]
[325186044,1714557003768,-150.0,0.00041137,30]
[325186045,1714557003792,-170.81985118,0.00041178,30]
[325186046,1714557003816,-150.0,0.00041178,30]
[325186047,1714557003842,-170.81985118,0.00041223,30]
[325186048,1714557003870,-170.81985118,0.00041267,30]
[325186049,1714557003895,-150.0,0.00041306,30]
[325186050,1714557003922,-170.81985118,0.00041311,30]
[325186051,1714557003947,-150.0,0.00041311,30]
[325186052,1714557003972,-170.81985118,0.00041355,30]
[325186053,1714557003995,-510.0,0.00041369,120]
[325186054,1714557004021,-170.81985118,0.000414,30]
[325186055,1714557004046,-150.0,0.000414,30]
[325186056,1714557004070,-170.81985118,0.00041444,30]
[325186057,1714557004093,-150.0,0.00041444,30]
[325186058,1714557004125,-5527.43940599,0.00041452,60]
[325186059,1714557004153,-150.0,0.00041475,30]
[325186060,1714557004182,-268.1,0.00041486,120]
[325186061,1714557004210,-170.81985118,0.00041488,30]
[325186062,1714557004235,-170.81985118,0.00041533,30]
[325186063,1714557004260,-170.81985118,0.00041577,30]
[325186064,1714557004284,-150.0,0.00041577,30]
[325186065,1714557004309,-170.81985118,0.00041621,30]
[325186066,1714557004332,-1800.0,0.00041643,30]
[325186067,1714557004356,-510.0,0.00041643,120]
[325186068,1714557004385,-4600.0,0.00041643,30]
[325186069,1714557004409,-1033.0,0.00041643,30]
[325186070,1714557004433,-150.0,0.00041643,30]
[325186071,1714557004457,-170.81985118,0.00041665,30]
[325186072,1714557004481,-170.81985118,0.0004171,30]
[325186073,1714557004511,-150.0,0.0004171,30]
[325186074,1714557004536,-170.81985118,0.00041754,30]
[325186075,1714557004560,-170.81985118,0.00041798,30]
[325186076,1714557004588,-324.33519863,0.000418,120]
[325186077,1714557004616,-150.0,0.00041812,30]
[325186078,1714557004640,-170.81985118,0.00041843,30]
[325186079,1714557004665,-150.0,0.00041843,30]
[325186080,1714557004689,-170.81985118,0.00041887,30]
[325186081,1714557004714,-150.0,0.00041887,30]
[325186082,1714557004738,-577.27086716,0.00041917,120]
[325186083,1714557004762,-170.81985118,0.00041931,30]
[325186084,1714557004785,-170.81985118,0.00041975,30]
[325186085,1714557004809,-150.0,0.00041975,30]
[325186086,1714557004833,-150.0,0.0004198,30]
[325186087,1714557004858,-100000.0,0.00042,42]
[325186088,1714557004890,-9944.14233398,0.00042,30]
[325186089,1714557004913,-965.5736339,0.00042,120]
[325186090,1714557004938,-1150.0,0.00042,120]
[325186091,1714557004962,-1000.0,0.00042,120]
[325186092,1714557004984,-1000.0,0.00042,120]
[325186093,1714557005008,-1000.0,0.00042,120]
[325186094,1714557005035,-1000.0,0.00042,120]
[325186095,1714557005059,-1000.0,0.00042,120]
[325186096,1714557005082,-1000.0,0.00042,120]
[325186097,1714557005107,-1000.0,0.00042,30]
[325186098,1714557005135,-1000.0,0.00042,30]
[325186099,1714557005162,-1000.0,0.00042,30]
[325186100,1714557005187,-1000.0,0.00042,30]
[325186101,1714557005211,-1000.0,0.00042,30]
[325186102,1714557005235,-1000.0,0.00042,30]
[325186103,1714557005259,-1000.0,0.00042,30]
[325186104,1714557005284,-369.59,0.00042,30]
[325186105,1714557005308,-2121.0,0.00042,30]
[325186106,1714557005333,-1000.0,0.00042,120]
[325186107,1714557005356,-1000.0,0.00042,120]
[325186108,1714557005382,-1000.0,0.00042,120]
[325186109,1714557005406,-1000.0,0.00042,120]
[325186110,1714557005429,-1000.0,0.00042,30]
[325186111,1714557005454,-1000.0,0.00042,30]
[325186112,1714557005477,-1000.0,0.00042,30]
[325186113,1714557005503,-956.54,0.00042,30]
[325186114,1714557005528,-2000.0,0.00042,30]
[325186115,1714557005553,-2000.0,0.00042,120]
[325186116,1714557005577,-2500.0,0.00042,120]
[325186117,1714557005604,-222661.21655007,0.00042,38]
[325186118,1714557006643,179.79467674,0.00010297,2]
[325186119,1714557008608,-881.75465972,0.000389,30]
[325186120,1714557008651,-777338.78344993,0.00042,38]
[325186121,1714557008677,-8070.0,0.00042,120]
[325186122,1714557008701,-170.81985118,0.0004202,30]
[325186123,1714557008725,-170.81985118,0.00042064,30]
[325186124,1714557008748,-203.33251,0.00042082,30]
[325186125,1714557008772,-170.81985118,0.00042108,30]
[325186126,1714557008809,-150.0,0.00042108,30]
[325186127,1714557008834,-150.0,0.00042149,30]
[325186128,1714557008858,-170.81985118,0.00042152,30]
[325186129,1714557008885,-1800.0,0.00042191,30]
[325186130,1714557008909,-222.89780398,0.00042191,30]
[325186131,1714557008935,-170.81985118,0.00042197,30]
[325186132,1714557008960,-170.81985118,0.00042241,30]
[325186133,1714557008984,-150.0,0.00042241,30]
[325186134,1714557009010,-170.81985118,0.00042285,30]
[325186135,1714557009035,-150.0,0.00042318,30]
[325186136,1714557009060,-170.81985118,0.0004233,30]
[325186137,1714557009084,-170.81985118,0.00042374,30]
[325186138,1714557009111,-150.0,0.00042374,30]
[325186139,1714557009135,-150.0,0.00042374,30]
[325186140,1714557009158,-150.0,0.00042374,30]
[325186141,1714557009183,-170.81985118,0.00042418,30]
[325186142,1714557009207,-170.81985118,0.00042462,30]
[325186143,1714557009232,-150.0,0.00042486,30]
[325186144,1714557009256,-30000.0,0.000425,50]
[325186145,1714557009281,-1000000.0,0.000425,40]
[325186146,1714557009306,-100000.0,0.000425,30]
[325186147,1714557009331,-170.81985118,0.00042507,30]
[325186148,1714557009355,-150.0,0.00042507,30]
[325186149,1714557009380,-170.81985118,0.00042551,30]
[325186150,1714557009404,-170.81985118,0.00042595,30]
[325186151,1714557009428,-170.81985118,0.0004264,30]
[325186152,1714557009452,-150.0,0.0004264,30]
[325186153,1714557009476,-150.0,0.00042655,30]
[325186154,1714557009506,-170.81985118,0.00042684,30]
[325186155,1714557009530,-170.81985118,0.00042728,30]
[325186156,1714557009556,-1800.0,0.00042739,30]
[325186157,1714557009581,-170.81985118,0.00042772,30]
[325186158,1714557009605,-150.0,0.00042772,30]
[325186159,1714557009630,-170.81985118,0.00042817,30]
[325186160,1714557009654,-150.0,0.00042823,30]
[325186161,1714557009679,-170.81985118,0.00042861,30]
[325186162,1714557009703,-150.0,0.00042861,30]
[325186163,1714557009728,-3238.37204641,0.0004288,48]
[325186164,1714557009752,-170.81985118,0.00042905,30]
[325186165,1714557009778,-150.0,0.00042905,30]
[325186166,1714557009802,-170.81985118,0.00042949,30]
[325186167,1714557009827,-150.0,0.00042992,30]
[325186168,1714557009851,-170.81985118,0.00042994,30]
[325186169,1714557009877,-1000.0,0.00042999,120]
[325186170,1714557009903,-100000.0,0.00043,43]
[325186171,1714557009928,-1050.0,0.00043,120]
[325186172,1714557009952,-20185.6644567,0.00043,120]
[325186173,1714557009974,-10115.0,0.00043,120]
[325186174,1714557009997,-35046.50512498,0.00043,30]
[325186175,1714557010023,-309999.999999,0.00043,120]
[325186176,1714557010047,-2344.650237,0.00043,120]
[325186177,1714557010276,-2000.0,0.00043,30]
[325186178,1714557010300,-2000.0,0.00043,120]
[325186179,1714557010324,-2500.0,0.00043,120]
[325186180,1714557010348,-1905.79450037,0.00043,120]
[325186181,1714557010375,-178.96,0.00043014,120]
[325186182,1714557010402,-170.81985118,0.00043038,30]
[325186183,1714557010427,-150.0,0.00043038,30]
[325186184,1714557010451,-170.81985118,0.00043082,30]
[325186185,1714557010476,-170.81985118,0.00043127,30]
[325186186,1714557010503,-150.0,0.00043161,30]
[325186187,1714557010527,-170.81985118,0.00043171,30]
[325186188,1714557010553,-150.0,0.00043171,30]
[325186189,1714557010580,-10000.0,0.000432,31]
[325186190,1714557010606,-170.81985118,0.00043215,30]
[325186191,1714557010634,-170.81985118,0.00043259,30]
[325186192,1714557010658,-1800.0,0.00043287,30]
[325186193,1714557010682,-10000.0,0.000433,31]
[325186194,1714557010706,-170.81985118,0.00043304,30]
[325186195,1714557010730,-150.0,0.00043304,30]
[325186196,1714557010754,-150.0,0.00043329,30]
[325186197,1714557010777,-170.81985118,0.00043348,30]
[325186198,1714557010800,-150.0,0.00043348,30]
[325186199,1714557010824,-170.81985118,0.00043392,30]
[325186200,1714557010848,-170.81985118,0.00043437,30]
[325186201,1714557010877,-150.0,0.00043437,30]
[325186202,1714557010900,-5527.43940599,0.00043452,60]
[325186203,1714557010924,-170.81985118,0.00043481,30]
[325186204,1714557010948,-412.58720614,0.00043481,40]
[325186205,1714557010971,-167.72362828,0.00043481,35]
[325186206,1714557010995,-150.0,0.00043481,40]
[325186207,1714557011019,-25000.0,0.00043481,40]
[325186208,1714557011042,-25000.0,0.00043481,40]
[325186209,1714557011067,-252.26170938,0.00043481,40]
[325186210,1714557011091,-150.0,0.00043498,30]
[325186211,1714557011117,-1000.0,0.00043499,120]
[325186212,1714557011140,-5000.0,0.000435,60]
[325186213,1714557011166,-10027.17804584,0.000435,40]
[325186214,1714557011190,-2500.0,0.000435,120]
[325186215,1714557011214,-2500.0,0.000435,120]
[325186216,1714557011239,-170.81985118,0.00043525,30]
[325186217,1714557011264,-170.81985118,0.00043569,30]
[325186218,1714557011289,-150.0,0.00043569,30]
[325186219,1714557011313,-1000.0,0.0004357,120]
[325186220,1714557011338,-535.88816269,0.000436,30]
[325186221,1714557011362,-170.81985118,0.00043614,30]
[325186222,1714557011387,-6380.4,0.00043653,98]
[325186223,1714557011411,-170.81985118,0.00043658,30]
[325186224,1714557011435,-150.0,0.00043666,30]
[325186225,1714557011459,-170.81985118,0.00043702,30]
[325186226,1714557011483,-150.0,0.00043702,30]
[325186227,1714557011511,-170.81985118,0.00043746,30]
[325186228,1714557011535,-2617.38772402,0.00043747,52]
[325186229,1714557011562,-170.81985118,0.00043791,30]
[325186230,1714557011586,-6718.99,0.000438,60]
[325186231,1714557011610,-459.3536241,0.000438,30]
[325186232,1714557011635,-867.0,0.000438,30]
[325186233,1714557011659,-208.0,0.0004383,30]
[325186234,1714557011682,-201.0,0.0004383,30]
[325186235,1714557011706,-727.56573193,0.00043835,30]
[325186236,1714557011730,-513.97833881,0.00043835,30]
[325186237,1714557011753,-1033.0,0.00043835,30]
[325186238,1714557011778,-1033.0,0.00043835,30]
[325186239,1714557011802,-187.0,0.00043835,30]
[325186240,1714557011826,-170.81985118,0.00043835,30]